bitfinex-derivatives/quotes_SOLF0:USTF0_20241103
["timestamp","ask_amount","ask_price","bid_price","bid_amount"]
[1730654171904,4.95918679,161.0,160.96,3.1073]
[1730654172105,1.85248679,161.0,160.92,10.44146955]
[1730654172411,3.1069,160.99,160.95,3.1075]
[1730654173311,3.107,160.98,160.95,3.1075]
[1730654173809,1.85248679,161.0,160.95,3.1075]
[1730654174214,3.1069,160.99,160.95,3.1075]
[1730654174411,3.1069,160.99,160.96,3.1073]
[1730654176110,3.1072,160.97,160.94,3.1077]
[1730654177009,1.85248679,161.0,160.96,10.44146955]
[1730654177610,1.85248679,161.0,160.99,3.1068]
[1730654180717,0.59548679,161.0,160.99,3.1068]
[1730654180919,3.1054,161.07,161.03,3.1059]
[1730654181425,3.24,161.08,161.03,3.1059]
[1730654182418,3.1056,161.06,161.03,3.1059]
[1730654182722,3.24,161.08,161.03,3.1059]
[1730654183219,3.1054,161.07,161.03,3.1059]
[1730654184212,3.967,161.1,161.02,10.44146955]
[1730654184412,3.1047,161.11,161.06,3.1053]
[1730654184818,3.24,161.12,161.06,3.1053]
[1730654185025,3.1047,161.1,161.06,3.1053]
[1730654185413,3.24,161.12,161.07,3.1052]
[1730654185813,3.1046,161.11,161.07,3.1052]
[1730654187619,3.1045,161.11,161.07,3.1052]
[1730654188527,14.42286955,161.16,161.04,10.44146955]
[1730654188723,14.42286955,161.16,161.08,3.105]
[1730654188724,3.1042,161.13,161.08,3.105]
[1730654190116,3.1042,161.13,161.05,1.3779]
[1730654190324,3.1042,161.13,161.09,3.1049]
[1730654191324,3.1042,161.13,161.1,6.6793569]
[1730654192513,3.24,161.15,161.1,6.6793569]
[1730654193523,3.1043,161.13,161.1,6.6793569]
[1730654195424,2.662,161.16,161.11,6.6793569]
[1730654195629,5.882,161.16,161.12,3.1043]
[1730654196121,8.9857,161.16,161.12,3.1043]
[1730654197218,8.9857,161.16,161.11,9.7837569]
[1730654197419,3.1038,161.15,161.11,9.7837569]
[1730654199733,2.662,161.16,161.11,6.6793569]
[1730654199934,2.662,161.16,161.09,6.6793569]
[1730654199935,3.1044,161.12,161.09,6.6793569]
[1730654201922,3.1044,161.12,161.08,3.105]
[1730654203521,3.1048,161.1,161.07,6.6793569]
[1730654203721,6.6793569,161.12,161.06,6.6793569]
[1730654204130,7.9733569,161.15,161.02,55.40624022]
[1730654204338,2.662,161.16,161.11,6.6793569]
[1730654204634,5.7657,161.16,161.12,3.1043]
[1730654204843,2.662,161.16,161.11,6.6793569]
[1730654205436,3.1039,161.15,161.11,9.7837569]
[1730654206231,3.104,161.14,161.11,6.6793569]
[1730654207235,2.662,161.16,161.11,6.6793569]
[1730654207236,3.1037,161.15,161.11,9.7837569]
[1730654208231,6.6793569,161.15,161.09,6.6793569]
[1730654208430,3.1042,161.13,161.09,9.7841569]
[1730654210242,3.1042,161.13,161.1,3.1046]
[1730654213445,3.1042,161.13,161.11,6.6793569]
[1730654214842,3.1038,161.15,161.11,6.6793569]
[1730654215140,2.662,161.16,161.11,6.6793569]
[1730654215551,41.92793599,161.18,161.14,6.6793569]
[1730654215847,41.92793599,161.18,161.15,6.6793569]
[1730654216230,41.92793599,161.18,161.15,9.7829569]
[1730654217257,41.92793599,161.18,161.16,3.1035]
[1730654217435,45.03113599,161.18,161.14,6.6793569]
[1730654217744,45.03113599,161.18,161.14,9.7831569]
[1730654218545,45.03113599,161.18,161.14,6.6793569]
[1730654218734,6.6793569,161.17,161.11,9.8993569]
[1730654218940,3.1039,161.15,161.12,3.1043]
[1730654219141,6.6793569,161.17,161.11,6.6793569]
[1730654219339,3.1029,161.2,161.16,9.7827569]
[1730654219641,6.6793569,161.23,161.16,9.7827569]
[1730654220142,3.1029,161.2,161.16,9.7827569]
[1730654220937,3.1026,161.21,161.17,3.1032]
[1730654221447,3.1026,161.21,161.18,6.6793569]
[1730654221637,9.8993569,161.24,161.18,6.6793569]
[1730654221942,3.1028,161.2,161.16,9.7828569]
[1730654223435,9.8993569,161.24,161.18,6.6793569]
[1730654223743,9.4496569,161.26,161.19,6.6793569]
[1730654223935,3.22,161.25,161.19,6.6793569]
[1730654224642,3.22,161.25,161.19,3.1029]
[1730654224643,3.1023,161.23,161.19,3.1029]
[1730654225450,6.6793569,161.24,161.18,6.6793569]
[1730654225651,6.6793569,161.23,161.16,6.6793569]
[1730654226148,3.22,161.25,161.13,6.6793569]
[1730654226149,6.6793569,161.19,161.13,6.6793569]
[1730654226549,6.6793569,161.19,161.11,6.6793569]
[1730654226749,9.2573569,161.19,161.11,9.7837569]
[1730654227267,6.6793569,161.17,161.11,6.6793569]
[1730654227435,3.9306,161.19,161.1,1.35]
[1730654227643,3.9306,161.19,161.09,3.22]
[1730654228353,3.9306,161.19,161.1,10.43518056]
[1730654228842,3.1034,161.17,161.13,3.104]
[1730654229048,10.43518056,161.27,161.16,10.43518056]
[1730654229248,3.1021,161.24,161.19,3.1028]
[1730654229752,4.4827,161.26,161.2,3.1027]
[1730654229951,1.3556,161.27,161.18,10.43518056]
[1730654230451,3.102,161.24,161.2,3.1026]
[1730654231152,3.102,161.24,161.18,10.43518056]
[1730654231349,3.102,161.24,161.19,3.1029]
[1730654231647,1.3556,161.27,161.16,1.4138]
[1730654231850,1.07922679,161.26,161.17,3.1032]
[1730654232654,3.1025,161.22,161.17,3.1032]
[1730654232842,1.3556,161.27,161.16,1.4138]
[1730654233051,1.07926318,161.26,161.16,1.4138]
[1730654233351,3.1025,161.22,161.16,1.4138]
[1730654233552,3.1025,161.22,161.17,3.1032]
[1730654233747,3.22,161.23,161.13,13.65518056]
[1730654233948,3.1031,161.19,161.13,13.65518056]
[1730654234154,3.1031,161.19,161.14,3.1038]
[1730654234655,1.3098,161.21,161.14,3.1038]
[1730654234954,3.1033,161.18,161.14,3.1038]
[1730654235748,1.3098,161.21,161.14,3.1038]
[1730654235749,3.1034,161.17,161.14,3.1038]
[1730654237850,1.3098,161.21,161.13,10.43518056]
[1730654238357,3.1028,161.2,161.15,3.1037]
[1730654238556,3.1028,161.2,161.13,10.43518056]
[1730654239154,3.1028,161.2,161.16,3.1034]
[1730654240054,1.3098,161.21,161.13,10.43518056]
[1730654240258,3.1031,161.19,161.13,10.43518056]
[1730654240569,1.3098,161.21,161.13,10.43518056]
[1730654240860,3.1028,161.2,161.15,3.1037]
[1730654241047,3.1028,161.2,161.14,1.2869]
[1730654241446,1.3098,161.21,161.16,3.1034]
[1730654241659,3.103,161.19,161.16,3.1034]
[1730654242756,3.1029,161.2,161.17,3.1033]
[1730654243148,3.1029,161.2,161.14,1.2869]
[1730654243353,3.1029,161.2,161.16,3.1035]
[1730654243851,3.103,161.19,161.16,3.1035]
[1730654244849,1.3098,161.21,161.11,15.03248056]
[1730654245656,3.1037,161.16,161.12,3.1042]
[1730654246764,3.1037,161.16,161.13,3.1041]
[1730654246957,4.35830111,161.21,161.09,10.43518056]
[1730654247168,11.84028056,161.2,161.09,10.43518056]
[1730654247461,3.1042,161.13,161.09,13.53998056]
[1730654247963,3.1045,161.12,161.09,10.43518056]
[1730654248163,3.22,161.17,161.04,10.43518056]
[1730654248164,11.71208056,161.16,161.04,10.43518056]
[1730654248955,3.1049,161.09,161.05,3.1056]
[1730654249164,11.71208056,161.16,161.04,10.43518056]
[1730654249759,11.71208056,161.16,161.04,13.54088056]
[1730654249966,11.71208056,161.16,161.04,10.43518056]
[1730654250969,3.1049,161.09,161.04,13.54088056]
[1730654251667,3.1049,161.09,161.04,10.43518056]
[1730654251854,3.1049,161.09,161.05,3.1056]
[1730654252667,3.1049,161.09,161.04,13.54098056]
[1730654253051,3.22,161.13,161.04,10.43518056]
[1730654253255,3.22,161.14,161.07,3.1052]
[1730654253675,3.22,161.14,161.04,10.43518056]
[1730654253860,3.1047,161.11,161.06,3.1054]
[1730654254059,1.389,161.13,161.04,10.43518056]
[1730654254373,3.1046,161.11,161.05,3.1057]
[1730654254571,1.389,161.13,161.05,3.1057]
[1730654255771,3.1049,161.1,161.05,3.1057]
[1730654255969,1.389,161.13,161.04,13.54088056]
[1730654256170,1.389,161.13,161.01,1.3664]
[1730654256171,3.1056,161.06,161.01,11.80158056]
[1730654256385,3.22,161.09,160.98,10.43518056]
[1730654256672,1.3631,161.08,160.98,10.43518056]
[1730654256867,3.106,161.04,160.98,10.43518056]
[1730654257067,3.106,161.04,160.99,3.1067]
[1730654257463,3.106,161.04,161.0,3.1066]
[1730654257971,1.3631,161.08,161.01,10.43518056]
[1730654258264,1.3631,161.08,160.99,10.43518056]
[1730654259064,3.106,161.04,161.0,3.1065]
[1730654260266,3.1061,161.03,161.0,3.1065]
[1730654262167,3.1063,161.02,160.99,3.1067]
[1730654262669,3.22,161.04,160.96,3.22]
[1730654263264,3.1067,161.0,160.97,3.1071]
[1730654264657,3.22,161.04,160.96,3.1073]
[1730654265164,3.1068,161.0,160.96,3.1073]
[1730654265570,10.43518056,161.03,160.93,1.2908]
[1730654265869,3.1075,160.96,160.92,52.21214375]
[1730654266171,10.43518056,161.01,160.92,52.21214375]
[1730654266377,3.1078,160.95,160.92,52.21214375]
[1730654267183,3.22,160.97,160.92,52.21214375]
[1730654267478,10.43518056,160.96,160.85,10.43518056]
[1730654267679,3.1087,160.9,160.82,14.97128056]
[1730654267974,3.22,160.92,160.82,14.97128056]
[1730654268184,3.1087,160.9,160.82,14.97128056]
[1730654268483,3.1087,160.9,160.86,3.1092]
[1730654269166,3.22,160.92,160.82,14.97128056]
[1730654269360,3.1091,160.88,160.82,11.75128056]
[1730654269564,3.22,160.92,160.82,11.75128056]
[1730654269966,3.1088,160.89,160.82,11.75128056]
[1730654270281,4.6055,160.92,160.82,11.75128056]
[1730654270783,3.1088,160.89,160.85,3.1094]
[1730654271176,6.3282,160.92,160.88,3.1089]
[1730654271475,3.22,160.92,160.82,11.75128056]
[1730654271679,6.3282,160.92,160.88,3.1089]
[1730654271882,4.5441,160.95,160.87,10.43518056]
[1730654272679,3.1081,160.93,160.87,10.43518056]
[1730654273681,3.1078,160.94,160.87,10.43518056]
[1730654273979,4.5441,160.95,160.87,10.43518056]
[1730654275287,3.108,160.93,160.89,3.1087]
[1730654276676,3.1083,160.92,160.88,3.1089]
[1730654276884,4.5441,160.95,160.87,10.43518056]
[1730654277585,3.108,160.93,160.89,3.1086]
[1730654277792,4.5441,160.95,160.87,10.43518056]
[1730654278087,4.5441,160.95,160.85,11.72598056]
[1730654278390,3.1083,160.92,160.85,11.72598056]
[1730654278774,4.5441,160.95,160.85,11.72598056]
[1730654278971,3.108,160.93,160.85,11.72598056]
[1730654279377,3.108,160.93,160.89,3.1086]
[1730654279886,4.5441,160.95,160.89,3.1086]
[1730654280083,3.1082,160.92,160.89,3.1086]
[1730654281485,4.5441,160.95,160.87,3.109]
[1730654281486,3.1086,160.9,160.87,3.109]
[1730654281693,3.1086,160.9,160.84,3.22]
[1730654281884,4.5441,160.95,160.82,11.75128056]
[1730654282081,4.5441,160.95,160.82,14.97128056]
[1730654282278,3.1089,160.89,160.85,3.1093]
[1730654282590,3.1089,160.89,160.82,14.97128056]
[1730654282788,3.22,160.9,160.82,1.3161]
[1730654282973,3.22,160.9,160.8,62.68982857]
[1730654282974,3.22,160.89,160.8,62.68982857]
[1730654283576,4.5553,160.89,160.8,52.25464801]
[1730654283792,11.84068056,160.88,160.77,1.3722]
[1730654283992,3.1096,160.85,160.79,3.1107]
[1730654284192,3.22,160.85,160.77,1.3722]
[1730654284885,3.1102,160.82,160.78,3.1108]
[1730654285590,3.22,160.85,160.76,3.1112]
[1730654285591,3.1106,160.8,160.76,3.1112]
[1730654289282,3.1109,160.79,160.75,3.1114]
[1730654289676,3.22,160.81,160.73,52.27534757]
[1730654290084,6.3304,160.81,160.77,3.111]
[1730654290895,3.22,160.81,160.79,3.1107]
[1730654291096,3.22,160.81,160.75,10.43518056]
[1730654291484,10.43518056,160.87,160.75,10.43518056]
[1730654291687,3.22,160.86,160.77,10.43518056]
[1730654291995,3.1098,160.84,160.8,3.1105]
[1730654292198,3.22,160.86,160.78,1.3703]
[1730654292684,3.11,160.83,160.78,1.3703]
[1730654293185,3.1098,160.84,160.79,3.1105]
[1730654293491,3.22,160.86,160.79,3.1105]
[1730654293987,3.11,160.83,160.79,3.1105]
[1730654294596,3.22,160.86,160.73,52.27534757]
[1730654294597,3.1105,160.81,160.77,3.1109]
[1730654296691,6.3302,160.82,160.78,3.1108]
[1730654296892,3.22,160.82,160.78,3.1108]
[1730654297192,3.22,160.82,160.73,52.27534757]
[1730654297497,3.1104,160.81,160.73,52.27534757]
[1730654297699,3.22,160.82,160.73,52.27534757]
[1730654297882,10.43518056,160.87,160.75,10.43518056]
[1730654298489,3.22,160.86,160.75,10.43518056]
[1730654298684,3.22,160.86,160.77,10.43518056]
[1730654298886,3.1093,160.86,160.8,3.1104]
[1730654299098,3.1093,160.86,160.78,1.3619]
[1730654299286,4.6255,160.88,160.78,4.52388581]
[1730654299489,3.109,160.88,160.84,3.1096]
[1730654299892,4.5553,160.89,160.84,3.1096]
[1730654300292,4.5553,160.89,160.8,10.43518056]
[1730654300491,3.1096,160.85,160.81,3.1101]
[1730654300694,10.43518056,160.88,160.78,1.3619]
[1730654301196,3.1102,160.82,160.78,1.3619]
[1730654302290,3.1102,160.82,160.79,3.1106]
[1730654302486,3.22,160.85,160.78,1.3619]
[1730654302684,3.1098,160.84,160.78,1.3619]
[1730654302891,13.65518056,160.85,160.73,52.27534757]
[1730654303090,3.1104,160.81,160.73,52.27534757]
[1730654303300,10.43518056,160.82,160.73,52.27534757]
[1730654303499,1.3257,160.81,160.75,3.1113]
[1730654304002,3.1109,160.79,160.75,3.1113]
[1730654304209,3.22,160.8,160.75,3.1113]
[1730654305097,3.1108,160.79,160.73,3.1117]
[1730654305401,3.1108,160.79,160.71,13.65518056]
[1730654305789,6.3306,160.8,160.71,13.65518056]
[1730654305996,3.22,160.8,160.71,13.65518056]
[1730654306393,6.3305,160.8,160.77,3.111]
[1730654308501,3.1105,160.8,160.77,3.111]
[1730654309899,3.1105,160.8,160.71,13.65518056]
[1730654309900,1.3257,160.81,160.78,3.1107]
[1730654310495,4.436,160.81,160.78,3.1107]
[1730654311900,3.1107,160.79,160.71,65.93930025]
[1730654312101,1.3257,160.81,160.71,65.93930025]
[1730654312608,1.3257,160.81,160.74,3.1115]
[1730654313014,1.3257,160.81,160.71,65.93930025]
[1730654313215,10.43518056,160.8,160.71,52.28411969]
[1730654313421,10.43518056,160.78,160.71,52.28411969]
[1730654313710,10.43518056,160.78,160.71,55.39631969]
[1730654314008,3.1115,160.75,160.71,55.39631969]
[1730654314199,10.43518056,160.78,160.7,1.295]
[1730654314509,3.22,160.79,160.7,1.295]
[1730654315609,3.1116,160.75,160.7,1.295]
[1730654316108,3.1116,160.75,160.71,3.1121]
[1730654316311,3.1112,160.77,160.7,1.295]
[1730654316701,3.22,160.79,160.7,1.295]
[1730654316901,3.1111,160.78,160.7,1.295]
[1730654317511,3.1111,160.77,160.74,3.1115]
[1730654322404,3.22,160.79,160.74,3.1115]
[1730654322605,10.43518056,160.78,160.67,3.22]
[1730654322806,11.79698056,160.78,160.67,3.22]
[1730654323008,3.112,160.73,160.69,3.1126]
[1730654323318,3.22,160.75,160.66,11.77208056]
[1730654323717,3.112,160.73,160.68,3.1127]
[1730654323903,3.112,160.73,160.66,11.77208056]
[1730654325527,10.43518056,160.71,160.57,10.43518056]
[1730654325712,4.5818,160.7,160.57,10.43518056]
[1730654326023,13.65518056,160.69,160.57,10.43518056]
[1730654326410,3.1134,160.66,160.62,3.114]
[1730654327418,13.65518056,160.69,160.57,10.43518056]
[1730654327629,3.22,160.68,160.57,10.43518056]
[1730654328136,3.1131,160.67,160.63,3.1138]
[1730654328323,3.22,160.68,160.63,3.1138]
[1730654329334,3.1132,160.66,160.63,3.1138]
[1730654329522,3.22,160.68,160.65,3.1133]
[1730654330123,6.3329,160.68,160.64,3.1135]
[1730654330627,3.113,160.67,160.63,3.1136]
[1730654332025,3.22,160.68,160.6,10.43518056]
[1730654332218,3.22,160.7,160.6,10.43518056]
[1730654332529,3.22,160.7,160.61,1.4144]
[1730654332722,3.1128,160.69,160.65,3.1133]
[1730654334130,10.43518056,160.66,160.42,10.43518056]
[1730654334325,3.22,160.65,160.54,1.36]
[1730654334828,3.1142,160.61,160.57,3.1148]
[1730654335032,3.22,160.65,160.54,1.36]
[1730654335526,3.1142,160.62,160.57,3.1149]
[1730654336418,3.22,160.65,160.57,3.1149]
[1730654336632,3.1142,160.61,160.57,3.1149]
[1730654337932,3.1137,160.64,160.6,3.1143]
[1730654338635,3.1138,160.63,160.6,3.1143]
[1730654339034,3.1138,160.63,160.59,3.1145]
[1730654340334,3.1141,160.62,160.59,3.1145]
[1730654340627,3.22,160.65,160.55,10.43518056]
[1730654340834,3.1144,160.6,160.55,10.43518056]
[1730654341235,3.22,160.65,160.55,10.43518056]
[1730654341432,3.114,160.62,160.55,10.43518056]
[1730654341837,3.114,160.62,160.58,3.1146]
[1730654342338,3.114,160.62,160.55,10.43518056]
[1730654342534,3.22,160.63,160.55,10.43518056]
[1730654342535,6.3338,160.63,160.55,10.43518056]
[1730654342739,11.75198056,160.68,160.55,10.43518056]
[1730654342932,2.6608,160.71,160.62,3.1139]
[1730654342933,3.1134,160.65,160.62,3.1139]
[1730654344231,6.333,160.67,160.58,10.43518056]
[1730654344432,3.22,160.67,160.59,1.2866]
[1730654344845,3.1132,160.66,160.63,3.1137]
[1730654345237,3.22,160.67,160.6,1.3946]
[1730654345432,3.22,160.67,160.65,3.1133]
[1730654345636,2.6608,160.71,160.6,1.3946]
[1730654345831,3.22,160.7,160.6,1.3946]
[1730654346039,2.6608,160.71,160.6,11.82978056]
[1730654346238,3.22,160.69,160.6,13.24488056]
[1730654346442,6.3328,160.69,160.6,13.24488056]
[1730654346642,6.3328,160.69,160.6,16.46488056]
[1730654346643,3.1128,160.69,160.6,16.46488056]
[1730654347941,2.6608,160.71,160.6,16.46488056]
[1730654347942,10.43518056,160.75,160.63,10.43518056]
[1730654348138,3.1122,160.72,160.63,10.43518056]
[1730654348843,3.1122,160.72,160.68,3.1127]
[1730654349147,3.1121,160.72,160.68,3.1127]
[1730654349343,3.22,160.74,160.63,10.43518056]
[1730654349536,3.1127,160.69,160.65,3.1134]
[1730654349842,6.3327,160.69,160.65,3.1134]
[1730654350043,3.22,160.69,160.61,10.43518056]
[1730654350236,3.1131,160.67,160.63,3.1137]
[1730654350433,3.22,160.69,160.6,2.8097]
[1730654350654,3.1101002,160.75,160.6,2.8097]
[1730654350655,3.1129,160.68,160.64,3.1134]
[1730654350846,6.3329,160.68,160.6,1.3946]
[1730654351236,6.3329,160.68,160.65,3.1133]
[1730654351655,10.43518056,160.72,160.61,10.43518056]
[1730654351946,3.22,160.69,160.65,3.1133]
[1730654352837,10.43518056,160.72,160.61,10.43518056]
[1730654353034,10.43518056,160.72,160.69,3.1125]
[1730654353035,3.22,160.72,160.69,3.1125]
[1730654353242,3.22,160.72,160.63,10.43518056]
[1730654353747,3.112,160.73,160.63,10.43518056]
[1730654354049,3.22,160.74,160.63,10.43518056]
[1730654354238,3.22,160.74,160.69,3.1125]
[1730654355347,3.1121,160.72,160.69,3.1125]
[1730654355548,3.22,160.74,160.71,3.1121]
[1730654355755,3.22,160.74,160.63,10.43518056]
[1730654356252,3.112,160.72,160.63,10.43518056]
[1730654356640,3.112,160.72,160.65,3.1133]
[1730654356840,3.112,160.72,160.63,10.43518056]
[1730654357750,3.112,160.72,160.68,3.1126]
[1730654357947,3.112,160.73,160.68,3.1126]
[1730654358160,3.22,160.74,160.68,3.1126]
[1730654358555,3.1128,160.69,160.65,3.1132]
[1730654359346,3.1128,160.69,160.66,3.1131]
[1730654364256,3.22,160.7,160.61,10.43518056]
[1730654364559,3.22,160.7,160.63,3.1136]
[1730654364762,1.3675,160.71,160.61,10.43518056]
[1730654364956,3.1129,160.68,160.65,3.1133]
[1730654365859,3.22,160.7,160.61,10.43518056]
[1730654366059,3.22,160.7,160.64,3.1136]
[1730654366463,4.5282,160.7,160.64,3.1136]
[1730654366667,10.43518056,160.68,160.56,10.43518056]
[1730654367157,3.1139,160.63,160.59,3.1144]
[1730654367361,3.22,160.64,160.59,3.1144]
[1730654367662,10.43518056,160.68,160.59,3.1144]
[1730654367857,3.22,160.67,160.59,3.1144]
[1730654368053,41.62537299,160.84,160.59,10.43518056]
[1730654368261,3.22,160.77,160.64,10.43518056]
[1730654368564,3.22,160.77,160.64,13.65518056]
[1730654368867,3.112,160.73,160.64,13.65518056]
[1730654369061,3.22,160.77,160.64,13.65518056]
[1730654369455,3.1121,160.72,160.67,3.1129]
[1730654369758,3.1121,160.72,160.64,13.65518056]
[1730654369955,10.43518056,160.79,160.64,13.65518056]
[1730654370156,3.1116,160.75,160.66,10.43518056]
[1730654372259,3.1116,160.75,160.7,3.1123]
[1730654372866,3.1116,160.75,160.66,10.43518056]
[1730654373066,3.1116,160.75,160.71,3.1122]
[1730654374573,3.1116,160.75,160.7,3.1124]
[1730654374868,3.22,160.78,160.66,10.43518056]
[1730654375062,6.5111,160.77,160.72,3.1119]
[1730654375268,10.43518056,160.83,160.72,10.43518056]
[1730654375466,3.4,160.86,160.76,10.43518056]
[1730654376073,4.1762,160.87,160.76,10.43518056]
[1730654376369,7.5762,160.87,160.76,10.43518056]
[1730654376665,3.1099,160.83,160.79,3.1105]
[1730654377668,3.1096,160.85,160.81,3.1103]
[1730654378371,3.11,160.83,160.76,10.43518056]
[1730654379270,3.11,160.83,160.78,3.1107]
[1730654380064,3.11,160.83,160.76,10.43518056]
[1730654380268,3.11,160.83,160.79,3.1107]
[1730654383074,18.01138056,160.87,160.76,10.43518056]
[1730654383266,18.01138056,160.87,160.63,24.861]
[1730654383267,21.06939079,160.87,160.74,10.43518056]
[1730654383463,10.43518056,160.84,160.74,10.43518056]
[1730654384264,10.43518056,160.84,160.75,3.1113]
[1730654384464,10.43518056,160.84,160.74,10.43518056]
[1730654385775,3.1107,160.8,160.76,3.1112]
[1730654386279,3.111,160.78,160.74,13.54678056]
[1730654387470,3.111,160.78,160.74,3.1116]
[1730654388181,3.111,160.78,160.72,13.83518056]
[1730654388372,3.111,160.78,160.74,3.1115]
[1730654392782,1.2857,160.81,160.74,10.43518056]
[1730654392973,3.4,160.83,160.74,10.43518056]
[1730654393379,3.1104,160.81,160.76,3.1112]
[1730654393681,3.4,160.83,160.76,3.1112]
[1730654394274,3.1103,160.81,160.76,3.1112]
[1730654394484,3.4,160.83,160.76,3.1112]
[1730654396390,3.1107,160.79,160.76,3.1112]
[1730654400492,3.4,160.83,160.74,10.43518056]
[1730654400785,11.71628056,160.86,160.76,10.43518056]
[1730654400786,3.4,160.84,160.76,10.43518056]
[1730654401981,3.1104,160.81,160.78,3.1107]
[1730654402188,3.4,160.84,160.74,10.43518056]
[1730654403087,3.1107,160.79,160.76,3.1112]
[1730654403282,3.4,160.84,160.74,10.43518056]
[1730654403484,13.83518056,160.84,160.72,10.43518056]
[1730654403679,10.43518056,160.81,160.71,53.69901501]
[1730654403992,4.0233,160.8,160.71,53.69901501]
[1730654404190,3.28,160.79,160.71,53.69901501]
[1730654405292,3.1116,160.75,160.71,56.81111501]
[1730654406791,3.28,160.79,160.71,4.5284]
[1730654406997,3.1117,160.74,160.71,3.1121]
[1730654407200,3.28,160.79,160.69,13.54768056]
[1730654407699,13.71518056,160.79,160.69,3.1125]
[1730654407896,3.1542602,160.78,160.68,3.1127]
[1730654408401,3.112,160.73,160.67,10.43518056]
[1730654408894,3.1121,160.72,160.69,3.1126]
[1730654410097,13.71518056,160.79,160.67,10.43518056]
[1730654410397,3.28,160.79,160.69,10.43518056]
[1730654411095,3.17507632,160.78,160.66,10.43518056]
[1730654411300,3.1124,160.71,160.67,3.1129]
[1730654411602,3.1124,160.71,160.66,10.43518056]
[1730654411901,3.1122,160.72,160.69,3.1125]
[1730654412284,3.1119,160.73,160.68,3.1127]
[1730654412497,3.1119,160.73,160.66,10.43518056]
[1730654412904,3.1123,160.71,160.68,3.1127]
[1730654413208,3.28,160.74,160.64,11.80168056]
[1730654413409,1.3607,160.73,160.64,11.80168056]
[1730654413902,3.28,160.74,160.66,10.43518056]
[1730654414695,3.1124,160.71,160.68,3.1128]
[1730654414898,3.28,160.74,160.66,10.43518056]
[1730654415090,3.112,160.72,160.69,3.1125]
[1730654416197,3.28,160.74,160.69,3.1125]
[1730654416399,3.1123,160.71,160.69,3.1125]
[1730654416700,3.1123,160.71,160.68,3.1128]
[1730654417295,6.3917,160.74,160.71,3.1122]
[1730654417494,6.3917,160.74,160.66,10.43518056]
[1730654417495,3.28,160.74,160.66,10.43518056]
[1730654418194,3.1122,160.72,160.68,3.1127]
[1730654418592,3.1122,160.71,160.68,3.1127]
[1730654418989,3.28,160.74,160.64,11.80168056]
[1730654419193,3.1128,160.69,160.66,3.1131]
[1730654420489,3.1128,160.69,160.67,3.113]
[1730654421597,3.1134,160.66,160.62,3.1139]
[1730654421800,3.28,160.69,160.59,10.43518056]
[1730654422204,1.3252,160.68,160.58,3.1147]
[1730654422503,1.3252,160.68,160.57,10.43518056]
[1730654422894,1.3566,160.67,160.57,10.43518056]
[1730654423293,11.79178056,160.67,160.55,1.3703]
[1730654423794,10.43518056,160.65,160.55,4.4856]
[1730654423993,3.28,160.64,160.55,4.4856]
[1730654424396,3.1145,160.6,160.55,4.4856]
[1730654425902,3.1146,160.59,160.55,4.4856]
[1730654426105,3.28,160.64,160.58,3.1146]
[1730654426405,3.1144,160.6,160.55,1.3703]
[1730654426903,3.1144,160.6,160.57,3.1149]
[1730654428894,3.28,160.64,160.55,1.3703]
[1730654429203,3.1148,160.58,160.55,1.3703]
[1730654429797,4.6788,160.64,160.55,1.3703]
[1730654429997,3.1146,160.59,160.56,3.1151]
[1730654430598,3.1148,160.58,160.52,10.43518056]
[1730654430990,3.1148,160.58,160.54,3.1154]
[1730654433503,3.1142,160.61,160.54,3.1154]
[1730654433700,3.28,160.59,160.54,3.1154]
[1730654434103,3.28,160.59,160.52,10.43518056]
[1730654434305,3.1151,160.57,160.53,3.1156]